{"text_format":"1","workbook":"xlsx","n_sheets":4,"sheets":["Annexe A - Partie 1","Annexe A - Partie 2","Annexe A - Partie 3","Annexe A - Partie 4"],"not_rendered":{"charts":0,"images":0,"macros":1,"external_links":0,"defined_names":3,"comments":1,"pivot_tables":0},"unopened":[],"bounds":{"document_bytes":16777216,"sheet_cells":100000,"rows_first":2000,"rows_last":500,"rows_between":2000,"halvings":0,"cell_chars":16384,"cell_head_chars":4096},"cells_cut":0,"cells_raw":0,"read":"whole","date_system":"1900"}

{"sheet":"Annexe A - Partie 1","index":0,"n_rows":97,"n_cols":22,"rows_kept":97,"cut":false,"hidden":false,"merged":[[110,6,110,13],[92,9,94,16],[95,9,95,14],[95,15,95,16],[96,9,96,12],[96,13,96,16],[97,9,97,16],[105,6,107,13],[108,6,108,11],[108,12,108,13],[109,6,109,9],[109,10,109,13],[86,1,86,3],[85,1,85,3],[83,1,83,3],[79,4,79,6],[80,4,80,6],[86,7,86,11],[80,1,80,3],[81,1,81,3],[86,4,86,6],[83,7,83,11],[84,7,84,11],[85,7,85,11],[18,2,18,3],[32,3,32,5],[32,9,32,15],[87,4,87,6],[77,12,77,14],[78,12,78,15],[72,5,72,6],[73,5,73,6],[74,5,74,6],[73,1,73,4],[72,1,72,4],[74,1,74,4],[78,1,78,3],[24,3,24,4],[25,3,25,4],[26,3,26,4],[27,3,27,4],[84,1,84,3],[79,1,79,3],[74,11,74,15],[86,12,86,15],[79,7,79,11],[80,7,80,11],[82,7,82,11],[14,1,14,6],[22,9,22,15],[38,26,40,26],[39,1,47,1],[36,3,38,5],[39,3,39,5],[40,3,40,5],[41,3,41,5],[46,3,46,5],[47,3,47,5],[35,0,35,16],[36,13,38,15],[39,13,39,15],[40,13,40,15],[41,13,41,15],[46,13,46,15],[47,13,47,15],[47,7,47,8],[46,7,46,8],[41,7,41,8],[36,20,38,20],[41,11,41,12],[36,17,38,17],[39,11,39,12],[74,7,74,10],[31,9,31,15],[60,1,60,5],[58,1,58,5],[53,1,57,2],[56,3,56,5],[57,3,57,5],[59,1,59,5],[52,1,52,5],[69,1,69,5],[61,1,61,5],[64,1,64,5],[69,6,69,15],[71,1,71,15],[72,11,72,15],[73,11,73,15],[40,7,40,8],[65,1,65,5],[63,1,63,5],[70,14,70,15],[62,1,62,5],[72,7,72,10],[73,7,73,10],[36,11,38,12],[89,0,89,14],[81,4,81,6],[82,4,82,6],[83,4,83,6],[82,1,82,3],[84,4,84,6],[85,4,85,6],[81,7,81,11],[78,4,78,6],[78,7,78,11],[79,12,79,15],[80,12,80,15],[81,12,81,15],[82,12,82,15],[83,12,83,15],[84,12,84,15],[85,12,85,15],[87,1,87,3],[87,7,87,11],[87,12,87,15],[88,1,88,3],[88,4,88,6],[88,7,88,11],[88,12,88,15],[0,0,0,15],[36,6,38,6],[55,3,55,5],[54,3,54,5],[53,3,53,5],[36,1,38,2],[5,1,5,6],[17,1,17,6],[6,1,6,6],[13,1,13,6],[21,1,21,6],[6,8,6,15],[8,1,8,6],[49,1,51,2],[1,0,3,16],[17,8,17,15],[11,8,11,15],[5,8,5,15],[12,1,12,6],[11,1,11,6],[40,11,40,12],[9,1,9,6],[7,8,7,15],[9,8,9,15],[7,1,7,6],[12,9,12,15],[8,8,8,15],[15,2,15,3],[15,5,15,6],[21,8,21,15],[24,9,24,15],[23,9,23,15],[30,9,30,15],[14,12,14,15],[15,8,15,11],[15,12,15,15],[19,13,19,14],[19,2,19,3],[18,5,18,6],[29,8,29,15],[22,5,23,5],[22,6,23,6],[22,3,23,4],[24,1,24,2],[25,1,25,2],[26,1,26,2],[27,1,27,2],[22,1,23,2],[48,13,48,15],[47,11,47,12],[48,11,48,12],[46,11,46,12],[51,3,51,5],[36,10,38,10],[36,9,38,9],[36,7,38,8],[48,7,48,8],[39,7,39,8],[50,3,50,5],[49,3,49,5]]}
["ANNEXE A :"]
["   PARTIE 1 :  DESCRIPTION DU PROJET"]
[]
[]
[]
[null,"Nom du projet et adresse municipale",null,null,null,null,null,null,"Nom et coordonnées du bénéficiaire"]
[]
[]
[]
[]
[]
[null,"Description légale du terrain et numéro du titre foncier",null,null,null,null,null,null,"Constitution en corporation et licence du bénéficiaire"]
[null,null,null,null,null,null,null,null,"__","Constitution à titre d’organisme sans but lucratif :",null,null,null,null,null,null,null,null,null,null,null,"X"]
[null,null,null,null,null,null,null,null,"__","Autre (précisez) :"]
[null,null,null,null,null,null,null,null,"Date de constitution en corporation ou d’inscription au Manitoba :    "]
[null,"__","Propriété du bénéficiaire",null,"__","Location",null,null,"Licences de l’établissement (le cas échéant) :"]
[]
[null,"Type de projet",null,null,null,null,null,null,"Programme de langue désignée"]
[null,"__","Construction d’une nouvelle garderie",null,"__","Ajout à une garderie existante",null,null,"__","Français ",null,null,"__","Bilingue (français-anglais)"]
[null,"__","Rénovations d’une garderie ou d’un lieu existant",null,"__","Autre (précisez)",null,null,"__","Immersion française",null,null,"__","Autre (précisez)"]
[null,null,null,null,null,null,null,null,null,null,null,null,null,null,null,null,null,null,null,null,null,2]
[null,"Places de garderie autorisées",null,null,null,null,null,null,"Confirmation de l’efficacité énergétique et de la conformité",null,null,null,null,null,null,null,null,null,null,null,null,3]
[null,null,null,"Nombre de places autorisé actuellement (B)",null,"Nombre total de places à la fin du projet (A)","Augmentation (A-B)",null,"__","Programme de bâtiments écologiques du Manitoba (obligatoire pour les projets de plus de 600 m2)",null,null,null,null,null,null,null,null,null,null,null,4]
[null,null,null,null,null,null,null,null,"__","Désignation Éconergique du Manitoba \n(10 % de mieux que le Code de l’énergie pour les bâtiments du Manitoba (2013)",null,null,null,null,null,null,null,null,null,null,null,5]
[null,"Enfants en bas âge",null,null,null,null,{"$f":"F25-D25","v":0},null,"__","Autre (précisez)",null,null,null,null,null,null,null,null,null,null,null,6]
[null,"Enfants d'âge préscolaire",null,null,null,null,{"$f":"F26-D26","v":0},null,null,null,null,null,null,null,null,null,null,null,null,null,null,7]
[null,"Enfants d'âge scolaire",null,null,null,null,{"$f":"F27-D27","v":0},null,"__","Conformité aux lignes directrices en matière d’approvisionnement de Logement Manitoba",null,null,null,null,null,null,null,null,null,null,null,8]
[null,"Total",null,{"$f":"SUM(D25:D27)","v":0},null,{"$f":"SUM(F25:F27)","v":0},{"$f":"F28-D28","v":0}]
[null,null,null,null,null,null,null,null,null,null,null,null,null,null,null,null,null,null,null,null,null,11]
[null,"Information sur le zonage et l’occupation  ",null,null,null,null,null,null,"Contrat de construction proposé",null,null,null,null,null,null,null,null,null,null,null,null,12]
[null,"__","Lotissement requis",null,null,"Zonage actuel :  ",null,null,"__","Soumission générale",null,null,null,null,null,null,null,null,null,null,null,13]
[null,"__","Dérogations requises",null,null,"Zonage requis :",null,null,"__","Gestion de construction",null,null,null,null,null,null,null,null,null,null,null,14]
[null,null,null,"Classification de l’occupation requise :",null,null,null,null,"__","Autre (précisez) ",null,null,null,null,null,null,null,null,null,null,null,15]
[null,null,null,null,null,null," "]
[]
[]
[null,"Fonction",null,"Description de la pièce",null,null,"Superficie brute de la pièce\n(en pieds carrés)","Espace consacré à la sieste",null,"Lumière du jour","Nombre de toilettes et d'\nurinoirs","Nombre de \nlavabos",null,"Espaces ou pièce autorisés\nD = Espaces dédiés\nS = Espaces partagés"]
[null,null,null,null,null,null,null,null,null,null,null,null,null,null,null,null,null,null,null,null,null,"Sélectionnez"]
[null,null,null,null,null,null,null,null,null,null,null,null,null,null,null,null,null,null,null,null,null,"Enfants en bas âge"]
[null,"Espace de jeu","Sélectionnez",null,null,null,null,null,null,null,null,null,null,null,null,null,null,null,null,null,null,"Enfants d'âge préscolaire"]
[null,null,"Sélectionnez",null,null,null,null,null,null,null,null,null,null,null,null,null,null,null,null,null,null,"Enfants d'âge scolaire"]
[null,null,"Sélectionnez"]
[null,null,"Sélectionnez"]
[null,null,"Sélectionnez"]
[null,null,"Sélectionnez"]
[null,null,"Sélectionnez"]
[null,null,"Sélectionnez"]
[null,null,"Sélectionnez"]
[null,"a - Espace de jeu total  ",null,null,null,null,{"$f":"SUM(G40:G48)","v":0},0,null,{"$f":"SUM(J40:J48)","v":0},{"$f":"SUM(K40:K48)","v":0},0]
[null,"Circulation",null,"Corridors et hall d’entrée"]
[null,null,null,"Escaliers"]
[null,null,null,"Ascenseurs"]
[null,"b - Circulation totale",null,null,null,null,{"$f":"SUM(G50:G52)","v":0}]
[null,"Espace supplémentaire \n\n(p. ex. cuisine, bureau du personnel, rangement, etc.)"]
[]
[]
[]
[]
[null,"c - Espace supplémentaire",null,null,null,null,{"$f":"SUM(G54:G58)","v":0}]
[null,"SUMMARY"]
[null,"a - Total Play Area",null,null,null,null,{"$f":"G49","v":0}]
[null,"b - Total Storage",null,null,null,null,{"$f":"G59","v":0}]
[null,"c - Total Service Rooms",null,null,null,null,{"$f":"#REF!","v":{"$error":"#REF!"}}]
[null,"d - Total Circulation",null,null,null,null,{"$f":"G53","v":0}]
[null,"d - Superficie brute du bâtiment ou du projet (a + b + c + d)",null,null,null,null,{"$f":"G53+G59+G49","v":0}]
[null,"Espace de jeux extérieur (sur place)"]
[]
[]
[]
[null,"NUMÉRO D'INSCRIPTION AUX FINS DE LA TPS :",null,null,null,null,"[saisir le no d’inscription aux fins de la TPS]"]
[]
[null,"ÉCHÉANCIERS PRÉVUS :"]
[null,"Date de prise de possession du bien-fonds",null,null,null,"Date d’adjudication de la construction",null,"Date de début de la construction",null,null,null,"Date d’occupation"]
[null,"AA/MM/JJ",null,null,null,"AA/MM/JJ",null,"AA/MM/JJ",null,null,null,"AA/MM/JJ"]
[null,"[saisir la date]",null,null,null,"[saisir la date]",null,"[saisir la date]",null,null,null,"[saisir la date]"]
[]
[]
[]
[null,"Coordonnées",null,null,"Adresse",null,null,"Nom de la personne-ressource",null,null,null,null,"N° de téléphone"]
[null,"Cabinet d’architectes",null,null,"[Adresse]",null,null,"[Nom, titre]",null,null,null,null,"[No de téléphone]"]
[null,"[saisir le nom]",null,null,"[Ville ou village (Manitoba)  code postal]"]
[null,"Entrepreneur",null,null,"[Adresse]",null,null,"[Nom, titre]",null,null,null,null,"[No de téléphone]"]
[null,"[saisir le nom]",null,null,"[Ville ou village (Manitoba)  code postal]"]
[null,"Cabinet d’avocats",null,null,"[Adresse]",null,null,"[Nom, titre]",null,null,null,null,"[No de téléphone]"]
[null,"[saisir le nom]",null,null,"[Ville ou village (Manitoba)  code postal]"]
[null,"Coordonnateur des licences du Programme d’apprentissage et de garde de la petite enfance  ",null,null,"[Adresse]",null,null,"[Nom, titre]",null,null,null,null,"[No de téléphone]"]
[null,"[saisir le nom]",null,null,"[Ville ou village (Manitoba)  code postal]"]
[null,"Inspecteur de la santé publique :",null,null,"[Adresse]",null,null,"[Nom, titre]",null,null,null,null,"[No de téléphone]"]
[null,"[saisir le nom]",null,null,"[Ville ou village (Manitoba)  code postal]"]
[]
[]
[]
[null,null,null,null,null,null,null,null,null,"Je certifie qu’il s’agit d’une description fidèle du projet à la date indiquée ci-dessous :"]
[]
[]
[null,null,null,null,null,null,null,null,null,"Initiales de l’agent autorisé du bénéficiaire :",null,null,null,null,null,"______________"]
[null,null,null,null,null,null,null,null,null,"Date :",null,null,null,"_____________________"]

{"sheet":"Annexe A - Partie 2","index":1,"n_rows":63,"n_cols":25,"rows_kept":63,"cut":false,"hidden":false,"merged":[[63,18,63,21],[25,1,25,16],[35,1,35,16],[29,1,29,16],[30,1,30,16],[31,1,31,16],[33,1,33,16],[34,1,34,16],[43,1,43,16],[40,5,40,16],[51,1,51,16],[45,5,45,16],[50,1,50,8],[50,9,50,16],[52,1,52,16],[53,1,53,16],[0,1,0,20],[2,1,2,20],[58,18,60,21],[61,18,61,19],[62,19,62,21],[61,20,61,21],[10,1,10,16],[11,1,11,16],[16,1,16,16],[18,1,18,16],[19,1,19,16],[20,1,20,16],[22,1,22,16],[23,1,23,16],[24,1,24,16],[45,1,45,4],[8,3,8,6],[32,3,32,6],[46,1,46,16],[47,1,47,16],[48,1,48,16],[37,1,37,11],[37,12,37,16],[27,5,27,16],[28,5,28,16],[38,1,38,4],[39,5,39,16],[38,5,38,16],[39,1,39,4],[26,1,26,4],[26,5,26,16],[49,1,49,16],[41,1,41,16],[42,1,42,16],[44,1,44,16],[9,7,9,16],[9,1,9,6],[12,1,12,16],[36,1,36,16],[40,1,40,4],[13,1,13,16],[14,1,14,4],[17,1,17,10],[17,11,17,16],[14,5,14,16],[27,1,27,4],[28,1,28,4]]}
[null,"ANNEXE A :"]
[]
[]
[null,"PARTIE 2 :  ESTIMATION DES COÛTS DU PROJET  "]
[]
[null,"Coûts du projet",null,null,null,null,null,null,null,null,null,null,null,null,null,null,null,"Estimation des coûts par le bénéficiaire (hors TPS)","Estimation de la TPS (le cas échéant)","Approuvé par Apprentissage et garde de la petite enfance (hors TPS)","TPS (le cas échéant)"]
[null,"Acquisition de terrains ou de bâtiments",null,null,null,null,null,null,null,null,null,null,null,null,null,null,null,null,null,"Colonne A","Colonne B"]
[null,"1. Coût du terrain, le cas échéant (y compris les structures existantes, s’il y a lieu)",null,null,null,null,null,null,null,null,null,null,null,null,null,null,null,"Ne s’applique pas au Fonds d’immobilisations du Programme d’apprentissage et de garde des jeunes enfants "]
[null,"Basé sur :",null,"Sélectionnez"]
[null,"2. Viabilisation hors-chantier (préciser) :",null,null,null,null,null,null,null,null,null,null,null,null,null,null,null,"Ne s’applique pas au Fonds d’immobilisations du Programme d’apprentissage et de garde des jeunes enfants ",null,null,null,null,null,null,"Sélectionnez"]
[null,"3. Frais juridiques et frais rattachés aux titres fonciers, frais d’enregistrement et taxe sur les mutations de bien-fonds\n",null,null,null,null,null,null,null,null,null,null,null,null,null,null,null,"Ne s’applique pas au Fonds d’immobilisations du Programme d’apprentissage et de garde des jeunes enfants ",null,null,null,null,null,null,"Prix d’achat"]
[null,"4. Honoraires d’arpenteur, évaluation environnementale du site (y compris essais de sol et rapport)\n",null,null,null,null,null,null,null,null,null,null,null,null,null,null,null,null,null,null,null,null,null,null,"Valeur estimative"]
[null,"5. Frais de dérogation ou de rezonage",null,null,null,null,null,null,null,null,null,null,null,null,null,null,null,null,null,null,null,null,null,null,"Valeur déterminée"]
[null,"6. Frais d’évaluation",null,null,null,null,null,null,null,null,null,null,null,null,null,null,null,"Ne s’applique pas au Fonds d’immobilisations du Programme d’apprentissage et de garde des jeunes enfants "]
[null,"7. Autre (préciser) :"]
[null,"Sous-total des coûts d’acquisition de terrains ou de bâtiments",null,null,null,null,null,null,null,null,null,null,null,null,null,null,null,{"$f":"SUM(R8:R15)","v":0},{"$f":"SUM(S8:S15)","v":0},{"$f":"SUM(T8:T15)","v":0},{"$f":"SUM(U8:U15)","v":0}]
[null,"Conception, financement et aménagement"]
[null,"8. Honoraires d’architecte, d’ingénieur et d’expert-conseil (préciser) :"]
[null,"9. Frais juridiques"]
[null,"10. Frais d’aménagement et de gestion de projet"]
[null,"11. Assurance pendant la construction"]
[null,"12. Intérêt pendant la construction"]
[null,"13. Impôts fonciers pendant la construction"]
[null,"14. Services publics pendant la construction"]
[null,"15. Étude de faisabilité géothermique"]
[null,"16. Frais de permis et d'autres travaux d’aménagement"]
[null,"17. Autre (préciser) :"]
[null,"18. Autre (préciser) :"]
[null,"19. Autre (préciser) :"]
[null,"Sous-total des coûts de conception, de financement et d’aménagement",null,null,null,null,null,null,null,null,null,null,null,null,null,null,null,{"$f":"SUM(R18:R29)","v":0},{"$f":"SUM(S18:S29)","v":0},{"$f":"SUM(T18:T29)","v":0},{"$f":"SUM(U18:U29)","v":0}]
[null,"Coûts de construction"]
[null,"20. Construction",null,null,null,null,null,null,null,null,null,null,null,null,null,null,null,null,null,null,null,null,null,"Sélectionnez"]
[null,"Basé sur :",null,"Estimation de la classe B",null,null,null,null,null,null,null,null,null,null,null,null,null,null,null,null,null,null,null,"Estimation de la classe D"]
[null,"21. Coûts de réfection, de conversion et de démolition",null,null,null,null,null,null,null,null,null,null,null,null,null,null,null,null,null,null,null,null,null,"Estimation de la classe C"]
[null,"22. Viabilisation sur le chantier",null,null,null,null,null,null,null,null,null,null,null,null,null,null,null,null,null,null,null,null,null,"Estimation de la classe B"]
[null,"23. Aménagement paysager",null,null,null,null,null,null,null,null,null,null,null,null,null,null,null,null,null,null,null,null,null,"Estimation de la classe A"]
[null,"24. Espace de jeux extérieur",null,null,null,null,null,null,null,null,null,null,null,null,null,null,null,null,null,null,null,null,null,"Résultat de la soumission"]
[null,"25. Imprévus",null,null,null,null,null,null,null,null,null,null,null,null,null,null,null,null,null,null,null,null,null,"Coût final"]
[null,"26. Autre (préciser) :"]
[null,"27. Autre (préciser) :"]
[null,"28. Autre (préciser) :"]
[null,"Sous-total des coûts de construction",null,null,null,null,null,null,null,null,null,null,null,null,null,null,null,{"$f":"SUM(R32:R41)","v":0},{"$f":"SUM(S32:S41)","v":0},{"$f":"SUM(T32:T41)","v":0},{"$f":"SUM(U32:U41)","v":0}]
[null,"Achèvement"]
[null,"29. Évaluation de la garderie achevée"]
[null,"30. Honoraires du vérificateur"]
[null,"31. Autre (préciser) :"]
[null,"Sous-total des coûts d’achèvement",null,null,null,null,null,null,null,null,null,null,null,null,null,null,null,{"$f":"SUM(R44:R46)","v":0},{"$f":"SUM(S44:S46)","v":0},{"$f":"SUM(T44:T46)","v":0},{"$f":"SUM(U44:U46)","v":0}]
[null,"TOTAL DES COÛTS DU PROJET",null,null,null,null,null,null,null,null,null,null,null,null,null,null,null,{"$f":"SUM(R16,R30,R42,R47)","v":0},{"$f":"SUM(S16,S30,S42,S47)","v":0},{"$f":"SUM(T16,T30,T42,T47)","v":0},{"$f":"SUM(U16,U30,U42,U47)","v":0}]
[]
[null,"Total Colonne  A + Colonne B",null,null,null,null,null,null,null,null,null,null,null,null,null,null,null,{"$f":"R48+S48","v":0},null,{"$f":"SUM(T48:U48)","v":0}]
[null,"Moins le remboursement de la TPS applicable (indiquer le %)"]
[null,"Moins les autres remboursements (liste)"]
[]
[null,"COÛTS NETS DU PROJET",null,null,null,null,null,null,null,null,null,null,null,null,null,null,null,{"$f":"R50-R51-R52","v":0},null,{"$f":"T50-T51-T52","v":0}]
[]
[]
[]
[]
[null,null,null,null,null,null,null,null,null,null,null,null,null,null,null,null,null,null,"Je certifie qu’il s’agit d’une description fidèle du projet à la date indiquée ci-dessous :"]
[]
[]
[null,null,null,null,null,null,null,null,null,null,null,null,null,null,null,null,null,null,"Initiales de l’agent autorisé du bénéficiaire :    ",null,"__________"]
[null,null,null,null,null,null,null,null,null,null,null,null,null,null,null,null,null,null,"Date :","__________________________"]

{"sheet":"Annexe A - Partie 3","index":2,"n_rows":28,"n_cols":7,"rows_kept":28,"cut":false,"hidden":false,"merged":[[27,3,27,5],[28,2,28,5],[0,1,0,4],[2,1,2,4],[23,2,25,5],[26,2,26,3],[26,4,26,5],[8,2,9,2],[8,3,9,3]]}
[null,"ANNEXE A "]
[]
[]
[null,"PARTIE 3 :  SOURCE DES FONDS  "]
[]
[null,"Renseignements sur le financement","Estimation du bénéficiaire"," Estimation approuvée"]
[null,"Sources de financement (préciser les sources et les montants)"]
[null,"1.  Contribution minimale du bénéficiaire"]
[null,"2. 2. Prêteur autorisé - (le cas échéant) \nDurée de l’hypothèque :                    _____ ans\nTaux d’intérêt :                                  _____ %\nPériode d’amortissement :                  _____ ans\nRemboursement annuel du prêt :                   $  "]
[null,"(capital et intérêts)"]
[null,"3.  Autres prêteurs autorisés (le cas échéant)\n(préciser la source, le montant et les conditions)  "]
[null,"4.  Fonds d’immobilisations du Programme d’apprentissage et de garde des jeunes enfants     "]
[null,"5.  a.  Énumérer toutes les autres sources de financement (le cas échéant) :"]
[null,"     b.  "]
[null,"     c."]
[null,"     d. "]
[null,"     e."]
[null,"Financement total",{"$f":"SUM(C8:C17)","v":0},{"$f":"SUM(D8:D17)","v":0}]
[null,"Coûts nets approuvés du projet (de la partie 2)",{"$f":"'Annexe A - Partie 2'!R54","v":0},{"$f":"'Annexe A - Partie 2'!T54","v":0}]
[]
[]
[]
[]
[null,null,"Je certifie qu’il s’agit d’une description fidèle du projet à la date indiquée ci-dessous :"]
[]
[]
[null,null,"Initiales de l’agent autorisé du bénéficiaire :    ",null,"__________",null,"  ______"]
[null,null,"Date :","__________________________"]

{"sheet":"Annexe A - Partie 4","index":3,"n_rows":28,"n_cols":10,"rows_kept":28,"cut":false,"hidden":false,"merged":[[23,6,25,9],[27,7,27,9],[28,6,28,9],[15,1,15,2],[9,1,9,2],[10,1,10,2],[11,1,11,2],[12,1,12,2],[13,1,13,2],[0,7,0,10],[0,3,0,6],[14,1,14,2],[8,1,8,2],[2,2,2,5]]}
[null,null,null,"ANNEXE A "]
[]
[]
[null,null,"PARTIE 4 : ESTIMATION DU FLUX DE TRÉSORERIE"]
[]
[]
[null,"Estimation du flux de trésorerie"]
[]
[null,"Source de financement",null,"Trimestre se terminant le 30 sept. 202X","Trimestre se terminant le 31 déc. 202X","Trimestre se terminant le 31 mars 202X","Trimestre se terminant le 30 juin 202X","Trimestre se terminant le 30 sept. 202X","Trimestre se terminant le 31 déc. 202X","Total"]
[null,"Fonds propres  ",null,null,null,null,null,null,null,{"$f":"SUM(D10:I10)","v":0}]
[null,"Financement",null,null,null,null,null,null,null,{"$f":"SUM(D11:I11)","v":0}]
[null,"Financement de l’Apprentissage et de la garde de la petite enfance ",null,null,null,null,null,null,null,{"$f":"SUM(D12:I12)","v":0}]
[null,"Autre",null,null,null,null,null,null,null,{"$f":"SUM(D13:I13)","v":0}]
[null,"Autre",null,null,null,null,null,null,null,{"$f":"SUM(D14:I14)","v":0}]
[null,"Autre",null,null,null,null,null,null,null,0]
[null,"Total",null,{"$f":"SUM(D10:D15)","v":0},0,0,0,0,0,0]
[]
[]
[]
[]
[]
[]
[]
[null,null,null,null,null,null,"Je certifie qu’il s’agit d’une description fidèle du projet à la date indiquée ci-dessous :"]
[]
[]
[null,null,null,null,null,null,"Initiales de l’agent autorisé du promoteur :  ",null,null,"__________"]
[null,null,null,null,null,null,"Date :","__________________________"]